Cogmind - Beta 16.1 @@@ ROGUE MODE // 2026.03.17 @ 20:36:07 Player: whodovoodoo Result: Destroyed by Y-45 Defender with Beam Rifle Performance ------------- Evolutions (1) 500 Regions Visited (3) 600 Robots Destroyed (10) 50 Value Destroyed (284) 284 Prototype IDs (1) 20 Alien Tech Used (0) 0 Bonus (0) 0 TOTAL SCORE: 1454 Bonus ------- None Cogmind --------- Core Integrity 0/400 Matter 300/300 Energy 100/100 System Corruption 2% Temperature Critical (643) Movement Core (250) Ox4 Location -9/Storage Parts ------- > --- POWER (1) -------- (None) > --- PROPULSION (2) --- (None) > --- UTILITY (3) ------ Medium Storage Unit > --- WEAPON (3) ------- Medium Laser Improved Medium Laser > --- INVENTORY (10) --- Light Ion Engine Compact Wheel Compact Wheel Compact Wheel Compact Wheel Peak State ------------ > --- POWER ------------ Ion Engine > --- PROPULSION ------- Wheel Wheel > --- UTILITY ---------- Small Storage Unit Seismic Detector > --- WEAPON ----------- Improved Medium Laser Improved Medium Laser > --- INVENTORY -------- Light Ion Engine Aluminum Leg Aluminum Leg Wheel Wheel Compact Wheel Compact Wheel Medium Laser [Rating: 11] Favorites ----------- Power Ion Engine Engine Ion Engine Propulsion Wheel Wheel Wheel Utility Medium Storage Unit Device Seismic Detector Storage Medium Storage Unit Weapon Improved Medium Laser Energy Gun Improved Medium Laser Build | -11 -10 -9 -9 ------- Run | Yrd Mat Mat Sto Slots Evolved 2 | . . 2 . Power . | . . . . Propulsion . | . . . . Utility 1 | . . 1 . Weapon 1 | . . 1 . Parts Attached 14 | 7 3 . 4 Power 2 | 1 . . 1 Engine 2 | 1 . . 1 Core . | . . . . Reactor . | . . . . Propulsion 4 | 2 . . 2 Treads . | . . . . Leg . | . . . . Wheel 4 | 2 . . 2 Hover . | . . . . Flight . | . . . . Utility 3 | 2 1 . . Device 1 | 1 . . . Storage 2 | 1 1 . . Processor . | . . . . Hackware . | . . . . Protection . | . . . . Artifact . | . . . . Weapon 5 | 2 2 . 1 Energy Gun 5 | 2 2 . 1 Energy Cannon . | . . . . Ballistic Gun . | . . . . Ballistic Cannon . | . . . . Launcher . | . . . . Special Weapon . | . . . . Impact Weapon . | . . . . Slashing Weapon . | . . . . Piercing Weapon . | . . . . Special Melee Weapon . | . . . . Unidentified Prototypes 1 | . 1 . . Parts Lost 8 | . . . 8 Power 2 | . . . 2 Propulsion 4 | . . . 4 Utility 1 | . . . 1 Weapon 1 | . . . 1 Highest Loss Streak 4 | . . . 4 To Critical Strikes . | . . . . Average Backups 7 | 4 7 8 7 Power 1 | . 1 1 1 Propulsion 5 | 2 5 6 5 Utility . | . . . . Weapon . | . 1 1 . Tool/Special . | . . . . Unused Backups 7 | . 2 . 5 Power 1 | . . . 1 Propulsion 6 | . 2 . 4 Utility . | . . . . Weapon . | . . . . Tool/Special . | . . . . Average Slot Usage (%) 84 | . 100 77 72 Engine 11 | . 14 11 10 Wheel 23 | . 28 22 20 Device 10 | . 14 11 6 Storage 12 | . 14 11 11 Energy Gun 25 | . 28 22 24 Peak Build Rating 11 | 7 11 11 11 Average Rating 9 | 4 10 11 10 On Entrance 7 | . 7 11 11 Avg Prop Armor Cover (%) . | . . . . Naked Turns . | . . . . Heaviest Build 23 | 14 22 22 23 Greatest Support 20 | 20 20 20 20 Greatest Overweight (x) 5 | . 1 1 5 Average Overweight (x) . | . . 1 1 Largest Inventory Capacity 10 | 8 10 10 10 Average Capacity 9 | 7 9 10 10 Most Carried 9 | 8 9 8 9 Average Carried 7 | 4 7 8 7 Final Capacity 10 | 8 10 10 10 Final Carried 8 | 8 8 8 5 Class Distribution -------------------- 87% | Mutant 12% | Gunner Dominant Class ---------------- Mutant | -10/Materials Mutant | -9/Materials Mutant | -9/Storage Resources | -11 -10 -9 -9 ----------- Run | Yrd Mat Mat Sto Matter Collected 349 | 263 . . 86 Remotely . | . . . . Salvage Created 498 | 104 . . 394 Parts 22 | 7 . . 15 Haulers Intercepted . | . . . . Recyclers Shooed . | . . . . Parts Field Recycled . | . . . . Retrieved Matter . | . . . . Parts Self-Destructed . | . . . . Prevented . | . . . . Parts Restored . | . . . . Kills | -11 -10 -9 -9 ------- Run | Yrd Mat Mat Sto Combat Hostiles Destroyed 6 | . . . 6 Guns 5 | . . . 5 Classes Destroyed 6 | 2 . . 4 Tunneler 1 | 1 . . . Recycler 2 | 1 . . 1 Watcher 1 | . . . 1 Grunt 3 | . . . 3 Duelist 1 | . . . 1 Sentry 2 | . . . 2 Best Kill Streak 5 | 2 . . 5 Combat Bots Only 5 | . . . 5 Max Kills in Single Turn 2 | 1 . . 2 Gunslinging . | . . . . Exploded . | . . . . Melee . | . . . . Uniques/NPCs Destroyed . | . . . . Combat | -11 -10 -9 -9 -------- Run | Yrd Mat Mat Sto Hostile Shots Fired 51 | . . . 51 Missed 14 | . . . 14 Hits 37 | . . . 37 Melee 3 | . . . 3 Projectile 34 | . . . 34 Damage Taken 888 | 12 3 . 873 Core 402 | . . . 402 Absorbed by Shields . | . . . . Core Remaining (%) 100 | 100 100 . . Volleys Fired 25 | 2 1 . 22 Largest 3 | 2 2 . 3 Hottest 162 | 90 112 . 162 Shots Fired 58 | 4 2 . 52 Gun 58 | 4 2 . 52 Cannon . | . . . . Launcher . | . . . . Special . | . . . . Kinetic . | . . . . Thermal 58 | 4 2 . 52 Explosive . | . . . . Electromagnetic . | . . . . Robot Hit Streak 8 | 1 2 . 8 Robot Miss Streak 3 | 2 1 . 3 Penetration Max . | . . . . Secondary Targets . | . . . . Shots Hit Robots 35 | 1 1 . 33 Core Hits 14 | 3 . . 11 Critical Kills . | . . . . Critical Parts Destroyed . | . . . . Critical Strikes 7 | . . . 7 Burn 7 | . . . 7 Melee Attacks . | . . . . Impact . | . . . . Slashing . | . . . . Piercing . | . . . . Sneak Attacks . | . . . . Combat Hostiles . | . . . . Follow-up Attacks . | . . . . Damage Inflicted 541 | 35 24 . 482 Guns 502 | 10 17 . 475 Cannons . | . . . . Explosions . | . . . . Melee . | . . . . Ramming 39 | 25 7 . 7 Kinetic . | . . . . Thermal 502 | 10 17 . 475 Explosive . | . . . . Electromagnetic . | . . . . Impact . | . . . . Slashing . | . . . . Piercing . | . . . . Highest Corruption 1 | 1 1 . 1 Average Corruption 1 | 1 1 . 1 Corruption Purged . | . . . . Corruption Blocked . | . . . . Effects 1 | . 1 . . Message Errors 1 | . 1 . . Overload Shots . | . . . . Overflow Damage . | . . . . Projectiles . | . . . . Explosions . | . . . . Melee . | . . . . Knockbacks . | . . . . Impact . | . . . . Kinetic . | . . . . Secondary . | . . . . Self-Inflicted Damage 17 | 12 3 . 2 Shots . | . . . . Rammed 9 | 3 2 . 4 Targets Rammed 9 | 3 2 . 4 Kicked . | . . . . Crushed . | . . . . Highest Temperature 765 | 60 51 . 765 Average Temperature 197 | 33 28 . 219 Received Heat Transfer 162 | . . . 162 Effects 16 | . . . 16 Shutdowns 2 | . . . 2 Energy Bleed 1 | . . . 1 Matter Decay 1 | . . . 1 Short Circuit 1 | . . . 1 Damage (minor) 1 | . . . 1 Damage (major) 5 | . . . 5 Damage (core) 5 | . . . 5 Siege Activations . | . . . . Martial Activations . | . . . . Shielding Activations . | . . . . Robots Disrupted . | . . . . Combat Hostiles . | . . . . Robots Corrupted . | . . . . Combat Hostiles . | . . . . Parts Fried . | . . . . Impact Corruptions . | . . . . Robots Melted 1 | . . . 1 Combat Hostiles 1 | . . . 1 Parts Melted 4 | . . . 4 Heat Transferred 1690 | 25 37 . 1628 Parts Sabotaged . | . . . . Parts Stolen . | . . . . Parts Stripped . | . . . . Power Chain Reactions . | . . . . Alert | -11 -10 -9 -9 ------- Run | Yrd Mat Mat Sto Maximum Alert Level . | . . . . Low Security (%) 100 | 100 100 100 100 Level 1 . | . . . . Level 2 . | . . . . Level 3 . | . . . . Level 4 . | . . . . Level 5 . | . . . . High Security . | . . . . Max Security . | . . . . Peak Influence 130 | 5 12 . 130 Initial . | . . . . Average 14 | 1 1 . 33 Influence Increases 259 | 10 17 . 232 Destroy 0b10 Robot/C 120 | . . . 120 Destroy 0b10 Robot/NC 20 | 10 . . 10 Destroy Leader 42 | . . . 42 Successful Hack 17 | . 17 . . Disable Machine 15 | . . . 15 Lose Combat Pursuer 45 | . . . 45 Influence Decreases 144 | 10 17 . 117 Time Decay 82 | 10 17 . 55 Lost Part 62 | . . . 62 Squads Dispatched 3 | . 1 . 2 Investigation . | . . . . Extermination . | . . . . Reinforcement 2 | . 1 . 1 Assault . | . . . . Garrison 1 | . . . 1 Intercept . | . . . . Searches Triggered . | . . . . Construction Impeded . | . . . . Haulers Reinforced . | . . . . Active Scanning Responses . | . . . . Cargo Convoy Interrupts . | . . . . Stealth | -11 -10 -9 -9 --------- Run | Yrd Mat Mat Sto Distress Signals 2 | . . . 2 Communications Jammed . | . . . . Distress Signals . | . . . . Times Spotted 17 | . 3 . 14 Peak Tracking Total 9 | . 2 . 9 Tactical Retreats 2 | . . . 2 Traps | -11 -10 -9 -9 ------- Run | Yrd Mat Mat Sto Traps Triggered 2 | . . . 2 Indirectly . | . . . . Trap Hack Attempts . | . . . . Triggered . | . . . . Disarmed 4 | . 4 . . Reprogrammed . | . . . . Reused . | . . . . Traps Extracted . | . . . . Installed . | . . . . Triggered . | . . . . Machines | -11 -10 -9 -9 ---------- Run | Yrd Mat Mat Sto Machines Disabled 1 | . . . 1 Max in Single Turn 1 | . . . 1 Machines Repaired . | . . . . Machines Dismantled . | . . . . Machines Sabotaged . | . . . . Overloaded Fab Kills . | . . . . Hacking | -11 -10 -9 -9 --------- Run | Yrd Mat Mat Sto Machines Accessed 4 | . 3 1 . Terminals 4 | . 3 1 . Fabricators . | . . . . Repair Stations . | . . . . Recycling Units . | . . . . Scanalyzers . | . . . . Garrison Access . | . . . . Total Hacks 14 | . 10 4 . Successful 6 | . 4 2 . Failed 8 | . 6 2 . Catastrophic 2 | . 1 1 . Database Lockouts . | . . . . Manual 2 | . 1 1 . Terminals 14 | . 10 4 . Fabricators . | . . . . Repair Stations . | . . . . Recycling Units . | . . . . Scanalyzers . | . . . . Garrison Access . | . . . . Terminal Hacks 6 | . 4 2 . Alert Level 1 | . . 1 . Disarm Traps 1 | . 1 . . Dispatch Records 1 | . . 1 . Investigation Status 1 | . 1 . . Recall Investigation 1 | . 1 . . Hauler Manifests 1 | . 1 . . Fabricator Hacks . | . . . . Repair Station Hacks . | . . . . Recycling Unit Hacks . | . . . . Scanalyzer . | . . . . Garrison Access Hacks . | . . . . Unauthorized Hacks . | . . . . Terminals . | . . . . Fabricators . | . . . . Repair Stations . | . . . . Recycling Units . | . . . . Scanalyzers . | . . . . Garrison Access . | . . . . Data Cores Recovered . | . . . . Used . | . . . . Hacking Detections 4 | . 3 1 . Full Trace Events . | . . . . Feedback Events . | . . . . Feedback Blocked . | . . . . Robot Schematics Acquired . | . . . . Robots Built . | . . . . Authchips . | . . . . Time . | . . . . Total Robot Build Rating . | . . . . Part Schematics Acquired . | . . . . Parts Built . | . . . . Authchips . | . . . . Time . | . . . . Total Part Build Rating . | . . . . Part Studies Acquired . | . . . . Parts Repaired . | . . . . Time . | . . . . Parts Recycled . | . . . . Recycled Matter . | . . . . Retrieved Matter . | . . . . Retrieved Components . | . . . . Parts Scanalyzed . | . . . . Part Schematics Acquired . | . . . . Parts Damaged . | . . . . Bothacking | -11 -10 -9 -9 ------------ Run | Yrd Mat Mat Sto Used RIF Installer . | . . . . Robots Hacked . | . . . . Non-combat . | . . . . Combat . | . . . . Robot Hacks Applied . | . . . . Relay Couplers Released . | . . . . Fabnet Peak Effective % . | . . . . Robots Rewired . | . . . . Allies Hacked . | . . . . Hacks Repelled . | . . . . Allies | -11 -10 -9 -9 -------- Run | Yrd Mat Mat Sto Total Allies . | . . . . Largest Group . | . . . . Highest-Rated Group . | . . . . Highest-Rated Ally . | . . . . Total Orders . | . . . . Ally Attacks . | . . . . Total Damage . | . . . . Kills . | . . . . Allies Corrupted . | . . . . Allies Melted . | . . . . Intel | -11 -10 -9 -9 ------- Run | Yrd Mat Mat Sto Active Infowar (turns) 302 | 18 144 39 101 Seismic 302 | 18 144 39 101 Robot Analysis Total . | . . . . Derelict Logs Recovered . | . . . . Drone Launches . | . . . . Drone Recoveries . | . . . . Exploration | -11 -10 -9 -9 ------------- Run | Yrd Mat Mat Sto Turns Passed 436 | 75 144 39 178 Spaces Moved 341 | 62 143 41 95 Core 7 | 6 . . 1 Treads . | . . . . Legs . | . . . . Wheels 334 | 56 143 41 94 Hover . | . . . . Flight . | . . . . Fastest Speed 50 | 50 80 95 95 Average Speed 90 | 77 90 95 97 Slowest Speed 300 | 80 95 95 300 Overloaded Moves . | . . . . Propulsion Burnouts . | . . . . Robots Hopped . | . . . . Potential Cave-ins . | . . . . Cave-ins Triggered . | . . . . Exploration Rate (%) 15 | 3 33 5 22 Regions Visited 3 Branch Regions 1 Pre-discovered Areas . | . . . . Known Exits Taken . | . . . . Unknown Exits Taken 3 | 1 1 1 . Scrap Searched . | . . . . Spaces Dug . | . . . . Terrain Destroyed . | . . . . Melee . | . . . . Projectile . | . . . . AOE . | . . . . Terrain Rammed . | . . . . Walls Destroyed . | . . . . Machines Disabled . | . . . . Actions | -11 -10 -9 -9 --------- Run | Yrd Mat Mat Sto Total 411 | 81 156 40 134 Wait . | . . . . Move 338 | 61 142 40 95 Hop . | . . . . Pick Up 13 | 8 4 . 1 Fast Attach 10 | 7 3 . . Attach 4 | . . . 4 Detach . | . . . . Swap . | . . . . Drop 4 | . 4 . . Fire 25 | 2 1 . 22 Melee . | . . . . Ram 9 | 3 2 . 4 Kick . | . . . . Crush . | . . . . Escape Stasis 8 | . . . 8 Rewire . | . . . . Trap . | . . . . Miscellaneous . | . . . . Route ------- -11/Scrapyard -10/Materials -9/Materials -9/Storage History --------- Turn | Location | Event 8 | -11/Scrapyard | Discovered new exit (range 15) 76 | -11/Scrapyard | Entered Materials 217 | -10/Materials | Discovered new exit (range 4) 220 | -10/Materials | Entered another Materials area 220 | -9/Materials | Evolved 2 slots: Utility x1, Weapon x1 244 | -9/Materials | Discovered new exit (range 14) 259 | -9/Materials | Entered Storage 311 | -9/Storage | Build established: Mutant 355 | -9/Storage | Garrison activated, responded to threat 401 | -9/Storage | Lost 4 parts (1p2n1u) 423 | -9/Storage | Core integrity fell below 50% 430 | -9/Storage | Core integrity fell below 20% 437 | -9/Storage | Destroyed by Y-45 Defender with Beam Rifle Last Messages --------------- Power failure, Ion Engine shutdown. Overheating: Core damaged (-56). Y-45 Defender heat damages Lgt. Treads, Heat Sink. Ion Engine destroyed. Imp. Medium Laser destroyed. Overheating: Energy bleed (-21). Slammed into Y-45 Defender. Y-45 Defender heat damages core (-7). Slammed into Y-45 Defender. Wheel destroyed. Overheating: Med. Storage Unit damaged (-33). Slammed into Y-45 Defender. Destabilizing: Core damaged (-12). K-01 Serf collects debris. Acquired 13 matter. Y-45 Defender heat spikes uncontrollably. Y-45 Defender heat damages core (-5). Slammed into Y-45 Defender. Destabilizing: System corrupted (+1). Map ----- +----------------------------------------------------+ | " "" #?????????????????????????????????????????? | | #?????????????????????????????????????????? | | +################????????????????????????????????? | | ?????????????????????????????????? | | ?????????????????????????????????? | | ?????????????????????????????????? | | +########### ##????????????????????????????????? | | #????# "#????????????????????????????????? | | "" #????# T#????????????????????????????????? | | ?"" #????# "?????????????????????????????????? | | ??"" #????# #?????????????????????????????????? | | ???" #????# #?????????????????????????????????? | | ???" #????# #?????????????????????????????????? | | """" ###### #?????????????????????????????????? | | + %= %! #?????????????????????????????????? | | ############ #?????????????????????????????????? | | ???????????# #?????????????????????????????????? | | ???????????# #?????????????????????????????????? | | ???????????# #?????????????????????????????????? | | ???????????# #?????????????????????????????????? | | ???????????# #?????????????????????????????????? | | ???????????# ############??????????????????????? | | ???????????# ## *% %= *#??????????????????????? | | ???????????# ## """""=#??????????????????????? | | ???????????# ## ????"%#??????????????????????? | | ???????????# ## ???""@#??????????????????????? | | ???????????# ## "???"%Y#??????????????????????? | | ???????????# ## "???"![#??????????????????????? | | ???????????# ## """""k%#??????????????????????? | | ???????????# ## #??????????????????????? | | ########### ###+##+##### ?????????????????? | | #????????????????? | | *= #????????????????? | | =%! #????????????????? | | ########################### ?????????????????? | | ???????????????????????????????#?????????????????? | | ?????????????????????????????????????????????????? | | ?????????????????????????????????????????????????? | | ?????????????????????????????????????????????????? | | ?????????????????????????????????????????????????? | | ?????????????????????????????????????????????????? | | ?????????????????????????????????????????????????? | | ?????????????????????????????????????????????????? | | ?????????????????????????????????????????????????? | | ?????????????????????????????????????????????????? | | ?????????????????????????????????????????????????? | | ?????????????????????????????????????????????????? | | ?????????????????????????????????????????????????? | | ?????????????????????????????????????????????????? | | ?????????????????????????????????????????????????? | +----------------------------------------------------+ Best States ------------- Heat Dissipation 28 Energy Generation 10 Energy Capacity 250 Matter Stores 300 Matter Capacity 300 Sight Range 16 Terrain Scan Density 10 Evasion (%) 44 Item Schematics ----------------- None Robot Schematics ------------------ None Fabricated ------------ Nothing Repaired ---------- Nothing Studied --------- None Alien Tech Used ----------------- None Achievements -------------- None Challenges ------------ None Game ------ Seed whodovoodoo Manual? 1 Play Time 00:09:03 Cumulative 43.7 hours Start 2026.03.17 @ 20:28:59 End 2026.03.17 @ 20:36:07 Sessions 1 Manual Loads 0 Difficulty Rogue Special Mode None Game No. 46 Rogue 17 Adventurer 0 Explorer 29 Win Type - Total 0 Types 0/0/0/0/0/0/0/0/0/0 Lore% 4 Gallery% 26 Achievement% 16 Wizard Run 0 Options --------- Layout 1 ASCII 1 Keyboard 1 Movement Vi Keybinds 0 Fullscreen 1 Font 24/Smallcaps Map View 50x35 Zoom Use 0% Tactical HUD 0 Map Filters NONE Filters NONE Steam 1 RUN: 31a35bc5-e7ec-4221-8c95-36ffefb8bf23